bitfinex/quotes_ETHUSD_20220101
["timestamp","ask_amount","ask_price","bid_price","bid_amount"]
[1641058525737,0.69803302,3740.8,3740.6,0.00397897]
[1641058527979,0.69803302,3740.8,3740.2,0.05093423]
[1641058528382,0.69803302,3740.8,3740.3,0.00170527]
[1641058534877,0.69803302,3740.8,3740.4,0.01057395]
[1641058535275,0.66847,3740.7,3740.4,0.01057395]
[1641058536676,1.33699,3740.7,3740.4,0.01057395]
[1641058537826,1.33699,3740.7,3740.2,0.01321345]
[1641058538227,0.00170527,3740.6,3740.2,0.01321345]
[1641058538427,0.66849,3740.5,3740.2,0.01321345]
[1641058538627,0.66962685,3740.5,3740.2,0.01321345]
[1641058539225,0.66962685,3740.5,3740.0,2.0]
[1641058539628,0.66962685,3740.5,3740.1,0.00113684]
[1641058540233,0.00113685,3740.5,3740.1,0.00113684]
[1641058540631,0.00113685,3740.5,3740.4,3.7180976]
[1641058541473,0.00113685,3740.5,3740.4,4.4050976]
[1641058541673,0.00113685,3740.5,3740.4,7.7550976]
[1641058542074,0.00113685,3740.5,3740.4,10.0340092]
[1641058542276,0.00113685,3740.5,3740.4,10.04685154]
[1641058542575,0.00113685,3740.5,3740.4,12.14725154]
[1641058542976,0.00033685,3740.5,3740.4,7.42915394]
[1641058544180,0.00033685,3740.5,3740.4,12.26515394]
[1641058544378,3.03775254,3742.1,3741.2,0.66807]
[1641058544677,0.00852635,3742.0,3741.3,1.35506]
[1641058544947,0.00795793,3741.9,3741.3,2.90829528]
[1641058545354,0.00738951,3741.8,3741.5,1.24716048]
[1641058545548,0.00738951,3741.8,3741.6,0.387]
[1641058545750,0.00682108,3741.7,3741.6,1.05504]
[1641058546049,0.00682108,3741.7,3741.6,1.35504]
[1641058546249,0.00682108,3741.7,3741.6,2.35504]
[1641058546449,0.00682108,3741.7,3741.6,4.56872279]
[1641058546652,0.00682108,3741.7,3741.6,3.0231035]
[1641058547451,0.00682108,3741.7,3741.6,5.2231035]
[1641058547652,0.00682108,3741.7,3741.6,0.387]
[1641058553034,0.00682108,3741.7,3741.6,2.00588344]
[1641058553237,0.00682108,3741.7,3741.6,4.92571429]
[1641058553434,0.00682108,3741.7,3741.6,9.52571429]
[1641058553632,0.00682108,3741.7,3741.6,5.92571429]
[1641058553832,0.00682108,3741.7,3741.6,8.62571429]
[1641058554432,0.00682108,3741.7,3741.6,6.41638344]
[1641058556190,0.00682108,3741.7,3741.6,4.72938344]
[1641058556578,0.00682108,3741.7,3741.6,3.4105]
[1641058556780,0.00682108,3741.7,3741.6,2.7]
[1641058557985,0.00682108,3741.7,3741.6,3.97027051]
[1641058558785,0.00682108,3741.7,3741.6,6.01054244]
[1641058559189,0.00682108,3741.7,3741.6,6.31054244]
[1641058559385,0.00682108,3741.7,3741.6,7.61054244]
[1641058562044,0.00682108,3741.7,3741.6,6.61054244]
[1641058562247,0.00682108,3741.7,3741.6,6.01054244]
[1641058562446,0.00682108,3741.7,3741.6,6.31054244]
[1641058562646,0.00682108,3741.7,3741.6,6.61054244]
[1641058565179,0.00682108,3741.7,3741.6,7.61054244]
[1641058566378,0.00682108,3741.7,3741.6,6.61054244]
[1641058566781,0.00682108,3741.7,3741.6,6.01054244]
[1641058566982,0.00682108,3741.7,3741.6,3.97027051]
[1641058567439,0.00682108,3741.7,3741.6,5.80350994]
[1641058568344,0.00682108,3741.7,3741.6,2.7]
[1641058570349,0.00682108,3741.7,3741.6,5.25917938]
[1641058570549,0.00682108,3741.7,3741.6,7.88067938]
[1641058571184,0.00682108,3741.7,3741.6,12.03067938]
[1641058572790,0.0059139,3741.7,3741.6,7.88067938]
[1641058573190,0.0059139,3741.7,3741.6,8.28493888]
[1641058573792,0.0059139,3741.7,3741.6,11.84650352]
[1641058575037,0.0059139,3741.7,3741.6,8.28493888]
[1641058575231,0.0059139,3741.7,3741.6,9.62080888]
[1641058577840,0.0059139,3741.7,3741.6,12.79386557]
[1641058579075,0.0059139,3741.7,3741.6,9.21654938]
[1641058580981,0.0059139,3741.7,3741.6,8.21654938]
[1641058581183,0.0059139,3741.7,3741.6,13.3771202]
[1641058581681,0.0059139,3741.7,3741.6,29.0671202]
[1641058582549,1.39e-05,3741.7,3741.6,29.0671202]
[1641058582750,1.39e-05,3741.7,3741.6,29.4713797]
[1641058583551,1.39e-05,3741.7,3741.6,25.3213797]
[1641058584154,3.03679301,3742.8,3741.6,25.3213797]
[1641058584155,3.03679301,3742.8,3742.6,1.1787703]
[1641058584559,0.00568424,3742.7,3742.6,1.1787703]
[1641058584755,0.00568424,3742.7,3742.6,1.4787703]
[1641058584954,0.00568424,3742.7,3742.6,3.26122021]
[1641058586188,0.00568424,3742.7,3742.6,4.56122021]
[1641058586391,0.00568424,3742.7,3742.6,7.37682342]
[1641058586590,0.00568424,3742.7,3742.6,5.90306814]
[1641058586990,0.00568424,3742.7,3742.6,21.59306814]
[1641058587390,1.03502359,3743.5,3743.0,0.6677]
[1641058587603,1.03502359,3743.5,3743.2,0.6677]
[1641058587797,0.00397896,3743.4,3743.3,1.68498086]
[1641058587994,0.00397896,3743.4,3743.3,1.98498086]
[1641058588293,0.00397896,3743.4,3743.3,2.98498086]
[1641058588495,0.00397896,3743.4,3743.3,5.06142121]
[1641058588694,0.00397896,3743.4,3743.3,4.32039546]
[1641058590933,0.00397896,3743.4,3743.3,6.43780437]
[1641058591536,0.00397896,3743.4,3743.3,4.32039546]
[1641058591937,0.00397896,3743.4,3743.3,7.32039546]
[1641058592138,0.00397896,3743.4,3743.3,7.33096147]
[1641058593335,0.00397896,3743.4,3743.3,10.03096147]
[1641058593536,0.00397896,3743.4,3743.3,7.03096147]
[1641058595290,0.00397896,3743.4,3743.3,4.43298061]
[1641058596691,3.04022745,3743.4,3743.3,4.43298061]
[1641058597297,0.00397896,3743.4,3743.3,4.43298061]
[1641058597738,3.04022745,3743.4,3743.3,3.09756601]
[1641058598435,3.04022745,3743.4,3743.3,3.69756601]
[1641058598635,3.04022745,3743.4,3743.3,4.69756601]
[1641058601482,3.04022745,3743.4,3743.3,5.36535601]
[1641058603085,3.04022745,3743.4,3743.3,4.36535601]
[1641058603488,0.00397896,3743.4,3743.3,3.09756601]
[1641058603691,0.00397896,3743.4,3743.3,2.71056601]
[1641058603991,3.04032235,3743.4,3743.3,2.71056601]
[1641058617697,3.03634339,3743.4,3743.3,2.71056601]
[1641058618096,3.03634339,3743.4,3743.3,4.62500397]
[1641058618898,3.03634339,3743.4,3743.3,5.76783301]
[1641058619098,1.03502359,3743.5,3743.3,5.76783301]
[1641058619099,1.03502359,3743.5,3743.3,6.06783301]
[1641058619398,1.03502359,3743.5,3743.4,2.09018564]
[1641058619799,1.03957097,3743.5,3743.4,2.09018564]
[1641058620742,1.03957097,3743.5,3743.4,2.75794564]
[1641058622845,1.03957097,3743.5,3743.3,3.85339505]
[1641058623246,0.00397896,3743.4,3743.3,2.71056601]
[1641058625092,3.04021768,3743.4,3743.3,2.71056601]
[1641058628739,3.04021768,3743.4,3743.3,4.58616814]
[1641058628938,3.04021768,3743.4,3743.3,2.71056601]
[1641058635236,0.00397896,3743.4,3743.3,6.26974539]
[1641058635438,0.00397896,3743.4,3743.3,7.37424539]
[1641058636037,0.00397896,3743.4,3743.3,7.76124539]
[1641058636843,0.00397896,3743.4,3743.3,5.50206601]
[1641058637444,0.00397896,3743.4,3743.3,5.9346544]
[1641058638143,0.00397896,3743.4,3743.3,7.5346544]
[1641058639191,0.00397896,3743.4,3743.3,5.9346544]
[1641058639787,0.00397896,3743.4,3743.3,6.2346544]
[1641058642752,0.00397896,3743.4,3743.3,5.9346544]
[1641058642952,0.00397896,3743.4,3743.3,6.2346544]
[1641058644458,0.00397896,3743.4,3743.3,3.90206601]
[1641058644853,0.00397896,3743.4,3743.3,5.72097224]
[1641058647282,0.00397896,3743.4,3743.3,4.91647224]
[1641058648092,0.00397896,3743.4,3743.3,5.21647224]
[1641058649191,0.00397896,3743.4,3743.3,6.99310717]
[1641058650846,0.00397896,3743.4,3743.3,7.29310717]
[1641058651044,0.00397896,3743.4,3743.3,6.99310717]
[1641058651447,0.00397896,3743.4,3743.3,7.29310717]
[1641058652445,0.00397896,3743.4,3743.3,5.51647224]
[1641058653049,0.00397896,3743.4,3743.3,6.51647224]
[1641058653254,1.03502359,3743.5,3743.3,8.51975224]
[1641058653448,1.03502359,3743.5,3743.4,5.41018635]
[1641058653683,1.03502359,3743.5,3743.4,2.71018635]
[1641058653882,1.03957097,3743.5,3743.4,2.71018635]
[1641058654281,1.03957097,3743.5,3743.4,4.10855498]
[1641058658443,1.03957097,3743.5,3743.4,4.11927041]
[1641058660150,1.03957097,3743.5,3743.4,5.50627041]
[1641058660552,0.69739306,3743.9,3743.5,4.3]
[1641058660746,0.69739306,3743.9,3743.7,0.6676526]
[1641058660948,0.69739306,3743.9,3743.8,2.87191196]
[1641058661202,0.69739306,3743.9,3743.8,4.55891196]
[1641058661404,0.69966676,3743.9,3743.8,4.55891196]
[1641058662101,0.69966676,3743.9,3743.8,6.33554689]
[1641058662712,1.41615578,3745.5,3743.9,21.19]
[1641058662907,1.41615578,3745.5,3743.9,21.49]
[1641058663108,0.00568423,3744.9,3743.9,6.83871743]
[1641058663507,0.00511581,3744.8,3743.9,22.52871743]
[1641058664009,0.00454739,3744.7,3744.4,1.4079308]
[1641058664209,0.00454739,3744.7,3744.6,6.11278397]
[1641058664409,1.36096945,3746.4,3744.6,8.75280213]
[1641058664609,1.36096945,3746.4,3744.6,9.35280213]
[1641058664809,0.00568423,3744.9,3744.7,1.0]
[1641058665042,0.00568423,3744.9,3744.8,7.22918631]
[1641058665246,1.15240971,3746.0,3744.8,9.78161631]
[1641058665445,1.15240971,3746.0,3744.9,5.8595857]
[1641058665644,1.15240971,3746.0,3744.9,2.6465857]
[1641058665845,0.10625266,3745.0,3744.9,2.6465857]
[1641058666144,0.10625266,3745.0,3744.9,5.3465857]
[1641058667347,0.10625266,3745.0,3744.9,2.6465857]
[1641058670695,0.10625266,3745.0,3744.9,0.387]
[1641058670998,0.06241954,3745.0,3744.9,2.30169024]
[1641058671200,0.06241954,3745.0,3744.9,0.387]
[1641058671395,0.06241954,3745.0,3744.9,2.28768075]
[1641058673446,0.06334151,3745.0,3744.9,2.28768075]
[1641058675147,0.06334151,3745.0,3744.9,2.28714031]
[1641058675350,0.06334151,3745.0,3744.9,0.387]
[1641058675848,0.06334151,3745.0,3744.9,3.087]
[1641058676049,0.06334151,3745.0,3744.9,4.087]
[1641058676317,0.06334151,3745.0,3744.9,2.7]
[1641058677117,5.06334151,3745.0,3744.9,2.7]
[1641058678121,5.01334151,3745.0,3744.9,2.7]
[1641058678322,0.01334151,3745.0,3744.9,2.7]
[1641058679127,2.96334151,3745.0,3744.9,2.7]
[1641058679325,0.01334151,3745.0,3744.9,2.7]
[1641058679945,0.01296141,3745.4,3745.0,1.98665849]
[1641058680346,0.00113684,3745.2,3745.0,1.98665849]
[1641058682558,1.36096945,3746.5,3745.2,6.4]
[1641058682854,5.08176945,3746.6,3746.4,1.40196565]
[1641058683058,5.08176945,3746.6,3746.5,0.66725]
[1641058683059,1.36096945,3746.6,3746.5,0.66725]
[1641058683352,0.00738951,3746.5,3746.4,1.40196565]
[1641058683551,0.00738951,3746.5,3746.3,0.66724]
[1641058684000,0.00682109,3746.4,3746.2,1.6345]
[1641058684200,0.00682109,3746.4,3746.2,1.9345]
[1641058684403,0.00625266,3746.3,3746.2,2.5350498]
[1641058684604,0.00625266,3746.3,3746.2,3.81985029]
[1641058686804,0.00625266,3746.3,3746.2,5.70635313]
[1641058687950,0.00625266,3746.3,3746.2,3.81985029]
[1641058689554,0.00625266,3746.3,3746.2,5.71607426]
[1641058692094,0.00625266,3746.3,3746.2,3.81985029]
[1641058693501,0.00625266,3746.3,3746.2,5.70826802]
[1641058694501,0.00723255,3746.3,3746.2,5.70826802]
[1641058695142,0.00723255,3746.3,3746.2,3.81985029]
[1641058695441,2.4289217,3747.2,3746.6,1.3345]
[1641058695641,1.02316764,3747.2,3746.2,8.48332514]
[1641058695845,0.00454739,3747.1,3746.5,1.33442]
[1641058696248,0.00397897,3747.0,3746.5,1.33442]
[1641058696647,0.00341054,3746.9,3746.5,1.33442]
[1641058697047,0.00284212,3746.8,3746.5,1.33442]
[1641058697547,1.02316764,3747.2,3746.5,1.33442]
[1641058697548,0.0022737,3746.7,3746.5,1.33442]
[1641058697750,0.0022737,3746.7,3746.5,3.62612428]
[1641058697951,0.00170527,3746.6,3746.5,1.33442]
[1641058700498,0.00170527,3746.6,3746.5,1.34497694]
[1641058703944,0.00170527,3746.6,3746.5,4.62368122]
[1641058704347,0.00170527,3746.6,3746.5,2.03197694]
[1641058705549,0.00170527,3746.6,3746.5,2.33197694]
[1641058706292,0.00170527,3746.6,3746.5,4.24391158]
[1641058706491,0.00170527,3746.6,3746.5,2.33197694]
[1641058706691,0.00170527,3746.6,3746.5,4.21564862]
[1641058708600,0.00170527,3746.6,3746.5,5.21564862]
[1641058709000,0.89834703,3747.4,3746.5,5.21564862]
[1641058709001,0.61531498,3747.7,3747.6,4.52586903]
[1641058709199,0.61531498,3747.7,3747.6,4.91286903]
[1641058709395,0.61531498,3747.7,3747.6,4.84546002]
[1641058710446,2.11044067,3747.9,3747.7,4.3]
[1641058710644,1.00179595,3748.0,3747.8,20.03549428]
[1641058710843,1.00179595,3748.0,3747.9,15.99]
[1641058711049,1.92910182,3749.1,3747.9,17.677]
[1641058711251,0.00795793,3748.0,3747.9,19.01056]
[1641058711647,1.87412476,3749.1,3748.1,2.00033]
[1641058711846,1.87412476,3749.1,3748.2,1.48114647]
[1641058712048,1.87412476,3749.1,3748.2,4.07285075]
[1641058712249,1.87412476,3749.1,3748.2,23.27164647]
[1641058712651,0.00227369,3748.4,3748.2,23.27164647]
[1641058712854,1.87412476,3749.1,3748.3,2.29170428]
[1641058713047,1.87412476,3749.1,3748.4,9.923]
[1641058713351,1.87064292,3748.9,3748.5,4.53551338]
[1641058713550,1.87412476,3749.1,3748.7,6.16925]
[1641058713799,1.87412476,3749.1,3748.9,4.836]
[1641058714095,1.87412476,3749.1,3749.0,15.69]
[1641058714299,1.87412476,3749.1,3749.0,20.913]
[1641058714493,1.84731396,3749.2,3749.0,5.523]
[1641058714694,1.84731396,3749.2,3749.1,4.836]
[1641058714896,1.84731396,3749.2,3749.1,5.523]
[1641058715193,1.84731396,3749.2,3749.1,7.81470428]
[1641058715393,1.84841429,3749.2,3749.1,5.523]
[1641058715792,1.84841429,3749.2,3749.1,7.81470428]
[1641058715993,1.84841429,3749.2,3749.1,10.51470428]
[1641058716195,1.91220146,3749.4,3749.3,21.90996008]
[1641058716196,0.28452806,3749.4,3749.3,21.90996008]
[1641058716504,3.29650436,3750.7,3749.3,21.90996008]
[1641058716505,3.29650436,3750.7,3749.9,6.1]
[1641058716508,0.51335456,3750.2,3749.9,6.1]
[1641058716713,1.95627078,3750.6,3750.2,6.1]
[1641058716903,1.93553491,3750.7,3750.5,4.836]
[1641058717100,3.22513757,3750.8,3750.7,16.067]
[1641058717310,0.46067097,3751.2,3750.9,4.6]
[1641058717566,5.71667709,3751.7,3751.1,5.14809913]
[1641058717567,0.62326874,3751.3,3751.1,5.14809913]
[1641058717761,1.76591973,3751.8,3751.6,1.14783968]
[1641058717961,6.38420547,3752.2,3751.7,8.39170428]
[1641058718161,4.50638493,3752.2,3751.9,6.1]
[1641058718364,0.12289977,3752.5,3752.1,4.836]
[1641058718560,1.99830925,3752.7,3752.6,1.43502837]
[1641058718760,0.50400925,3752.7,3752.6,6.80782554]
[1641058718962,9.25e-06,3752.7,3752.6,9.09952982]
[1641058719168,0.48055999,3753.5,3753.4,1.39000576]
[1641058719358,3.06153712,3753.7,3753.4,3.06879328]
[1641058719558,1.50193712,3753.7,3753.4,3.06879328]
[1641058719761,1.50193712,3753.7,3753.4,1.67878752]
[1641058719959,1.50193712,3753.7,3753.4,2.26920387]
[1641058720671,0.8845889,3754.4,3753.5,6.1]
[1641058720864,1.41668136,3754.5,3753.6,1.70755711]
[1641058721061,1.41668136,3754.5,3753.7,1.23452294]
[1641058721293,1.29806704,3755.3,3753.9,0.03125]
[1641058721494,0.94953521,3755.7,3754.2,0.92754152]
[1641058721495,9.35660926,3755.4,3754.2,0.92754152]
[1641058721708,0.89344732,3756.1,3754.2,0.92754152]
[1641058721895,0.11992,3760.0,3754.2,0.92551513]
[1641058722101,0.97330068,3758.1,3756.7,0.555819]
[1641058722297,0.96812273,3758.2,3757.6,0.55559673]
[1641058722511,0.96812273,3758.2,3756.7,0.555819]
[1641058722512,0.96812273,3758.2,3756.8,1.39523]
[1641058722513,0.01213524,3757.7,3756.8,1.39523]
[1641058722799,1.39523,3756.8,3756.7,0.555819]
[1641058723000,2.49332704,3756.8,3756.7,0.555819]
[1641058723298,2.53709565,3756.8,3756.7,0.555819]
[1641058723500,7.24186565,3756.8,3756.4,1.39523]
[1641058723697,0.387,3755.9,3755.3,5.65874339]
[1641058723899,0.387,3755.9,3755.8,4.23700602]
[1641058724098,1.72767206,3755.9,3755.8,4.23700602]
[1641058724302,5.85,3755.8,3755.2,5.82704339]
[1641058724698,5.88808437,3755.8,3755.2,3.14187807]
[1641058724964,5.88808437,3755.8,3755.3,0.99225595]
[1641058725150,0.03808437,3755.8,3755.1,0.41230088]
[1641058725353,0.03808437,3755.8,3755.2,2.29170428]
[1641058725550,0.03808437,3755.8,3755.3,0.5317]
[1641058725950,0.00172961,3755.7,3755.3,0.5317]
[1641058726151,0.00172961,3755.7,3755.4,0.01053163]
[1641058726355,0.03694752,3755.6,3755.4,0.01053163]
[1641058726752,0.0363791,3755.5,3755.4,0.01053163]
[1641058726962,2.2894511,3757.4,3755.4,0.02282848]
[1641058727157,0.66568,3757.5,3755.4,2.31453276]
[1641058727363,1.23151798,3755.9,3755.4,2.31453276]
[1641058727556,1.23151798,3755.9,3755.4,0.02282848]
[1641058727757,1.23151798,3755.9,3755.5,0.00113685]
[1641058728163,1.23151798,3755.9,3755.1,8.8e-07]
[1641058728164,0.05989826,3755.8,3755.1,8.8e-07]
[1641058728360,0.05989826,3755.8,3754.2,0.93840556]
[1641058728361,0.387,3755.7,3755.5,0.32925248]
[1641058728560,0.68813685,3755.7,3755.5,5.248e-05]
[1641058728803,0.68813685,3755.7,3754.1,0.68580162]
[1641058728804,1.07638841,3754.2,3754.1,0.68580162]
[1641058728999,6.1,3755.6,3754.1,0.68580162]
[1641058729000,4.62655696,3755.6,3754.1,0.68580162]
[1641058729198,1.33196,3755.0,3754.1,0.69205428]
[1641058729801,0.66597,3754.9,3754.1,0.69205428]
[1641058730003,0.387,3754.8,3753.8,0.01263776]
[1641058730201,0.86428861,3753.6,3753.2,0.67676669]
[1641058730408,0.86428861,3753.6,3752.5,0.10718666]
[1641058730409,1.63806053,3753.1,3752.5,0.10718666]
[1641058730604,5.62e-06,3753.2,3752.5,0.10718666]
[1641058730807,0.66625,3753.0,3752.6,0.00852635]
[1641058731005,1.00421559,3753.1,3752.6,0.00852635]
[1641058732012,6.1,3753.0,3750.4,0.387]
[1641058732213,2.67870428,3752.9,3750.0,4.54281474]
[1641058732455,1.33314,3751.7,3750.5,0.01193689]
[1641058732679,1.41692552,3751.2,3750.5,0.01193689]
[1641058732855,0.01263443,3752.5,3750.5,0.01193689]
[1641058732856,0.387,3752.6,3750.5,0.01193689]
[1641058733054,0.66639,3752.5,3750.6,0.39946751]
[1641058733253,0.00113685,3752.8,3750.6,0.39946751]
[1641058733455,0.00113685,3752.8,3750.7,0.01080005]
[1641058733655,0.00113685,3752.8,3750.8,0.387]
[1641058733855,1.19678352,3751.9,3750.8,0.387]
[1641058734054,0.00113685,3752.8,3751.8,6.15]
[1641058734455,6.9773,3754.6,3752.0,6.1]
[1641058734759,0.00170527,3753.1,3752.1,2.00397897]
[1641058735156,0.00113684,3753.0,3752.2,1.35068007]
[1641058735362,1.33228,3754.3,3752.3,8.487]
[1641058735556,0.00682108,3754.0,3752.3,8.49097896]
[1641058735757,0.00682108,3754.0,3752.4,0.00341054]
[1641058735955,0.00511581,3753.9,3752.4,0.00341054]
[1641058736216,6.1,3753.8,3752.3,1.99827754]
[1641058736413,0.00454739,3753.8,3751.9,2.0]
[1641058736617,1.27776818,3752.9,3751.9,1.75635103]
[1641058736813,1.27776818,3752.9,3752.0,0.30227369]
[1641058737013,0.0022737,3752.8,3752.1,2.0]
[1641058737215,1.27776818,3752.9,3752.2,6.1]
[1641058737216,1.13004188,3752.9,3752.2,6.1]
[1641058737415,1.13004188,3752.9,3752.2,0.00341054]
[1641058737615,1.13004188,3752.9,3752.3,0.00284212]
[1641058737814,1.13004188,3752.9,3752.1,2.0]
[1641058738016,0.6672473,3753.8,3752.1,2.30397897]
[1641058738217,0.6672473,3753.8,3752.2,0.00341054]
[1641058738422,0.00511581,3753.7,3752.2,0.00341054]
[1641058738920,0.00454738,3753.6,3752.0,0.00454739]
[1641058739321,6.1,3754.4,3752.5,1.0121653]
[1641058739520,6.1,3754.4,3752.0,0.00454739]
[1641058739521,1.09797736,3753.5,3752.6,2.0]
[1641058739722,1.09797736,3753.5,3752.6,0.00511581]
[1641058739954,1.09797736,3753.5,3752.7,0.00454739]
[1641058740159,1.09797736,3753.5,3752.0,0.00852635]
[1641058740657,1.20550701,3752.4,3752.0,0.00852635]
[1641058741456,0.66627,3753.3,3752.0,0.00852635]
[1641058741655,0.00113685,3753.7,3752.0,0.00852635]
[1641058742365,0.387,3754.1,3754.0,0.99096692]
[1641058742559,0.387,3754.1,3752.3,2.0]
[1641058742560,1.02635074,3752.8,3752.3,2.0]
[1641058742757,0.00113684,3753.9,3752.3,2.0]
[1641058742956,0.38813684,3753.9,3752.4,0.00738951]
[1641058743159,0.38813684,3753.9,3750.3,4.54339]
[1641058743160,3.10247898,3752.2,3750.3,4.54339]
[1641058743559,0.387,3752.1,3751.1,0.0073895]
[1641058744014,0.337,3752.1,3751.1,0.0073895]
[1641058744311,1.39596858,3751.5,3751.0,0.00795793]
[1641058744911,1.39596858,3751.5,3750.5,0.01080004]
[1641058745313,0.69603983,3751.4,3750.5,0.01080004]
[1641058745515,1.03704809,3750.7,3750.5,0.01080004]
[1641058745715,1.03704809,3750.7,3750.5,0.00823904]
[1641058746315,1.03704809,3750.7,3750.0,0.01108116]
[1641058746717,0.66668,3751.2,3750.0,0.01108116]
[1641058746916,0.69603983,3751.4,3750.1,0.387]
[1641058747114,3.10247898,3752.2,3750.2,2.0]
[1641058747315,3.10247898,3752.2,3750.2,2.00994431]
[1641058747551,0.00085573,3752.1,3750.3,0.00937589]
[1641058747756,0.00085573,3752.1,3751.4,1.04706602]
[1641058747953,0.00085573,3752.1,3751.8,4.29166978]
[1641058748153,0.00085573,3752.1,3751.8,5.29166978]
[1641058748555,0.00085573,3752.1,3751.8,1.0]
[1641058748754,0.00085573,3752.1,3751.8,0.9]
[1641058749053,0.00085573,3752.1,3751.8,0.897439]
[1641058749255,0.01292142,3753.6,3752.0,6.1]
[1641058749454,3.828,3753.7,3752.1,2.0]
[1641058749656,0.00284212,3752.6,3752.1,2.6]
[1641058749854,0.00284212,3752.6,3752.2,1.35076953]
[1641058750064,0.0022737,3752.5,3752.2,1.35076953]
[1641058750364,1.96870912,3753.4,3751.9,0.00113684]
[1641058750556,1.96870912,3753.4,3752.3,0.00113684]
[1641058750557,3.30142912,3753.4,3752.3,0.00113684]
[1641058750754,3.30142912,3753.4,3751.9,2.0]
[1641058750755,0.00454738,3753.3,3751.9,0.00341054]
[1641058750954,0.00454738,3753.3,3752.0,0.00284212]
[1641058751199,0.00397896,3753.2,3752.3,1.29303368]
[1641058751603,1.96870912,3753.4,3752.3,1.29303368]
[1641058751604,0.00341054,3753.1,3752.4,1.69508928]
[1641058751833,0.00341054,3753.1,3752.5,0.32]
[1641058752102,0.01263449,3754.5,3752.6,2.0]
[1641058752103,0.00284211,3753.0,3752.6,2.0]
[1641058752302,0.00284211,3753.0,3752.7,0.317439]
[1641058752505,0.00227369,3752.9,3752.8,2.3]
[1641058752706,0.00227369,3752.9,3752.8,2.62]
[1641058753110,0.00227369,3752.9,3752.8,6.62]
[1641058754205,0.00227369,3752.9,3752.8,8.72]
[1641058756372,0.05597285,3754.6,3752.8,8.72]
[1641058756373,0.05597285,3754.6,3752.9,6.1022]
[1641058756673,0.00909478,3754.5,3753.0,2.9387384]
[1641058756871,0.00909478,3754.5,3753.0,3.2387384]
[1641058757178,0.00852635,3754.4,3753.8,0.66574]
[1641058757376,1.32871306,3755.6,3754.0,6.1]
[1641058757575,0.01207221,3756.2,3755.4,1.0]
[1641058757774,0.01207221,3756.2,3755.5,0.32]
[1641058757974,0.01207221,3756.2,3755.1,0.32]
[1641058757975,0.00117937,3755.5,3755.1,0.32]
[1641058758192,0.00117937,3755.5,3754.6,0.32]
[1641058758377,0.00568424,3755.4,3754.2,0.3]
[1641058758576,0.00568424,3755.4,3754.6,1.0]
[1641058758824,0.00511581,3755.3,3754.7,0.01053288]
[1641058759223,0.00454739,3755.2,3754.7,0.01053288]
[1641058759422,0.00454739,3755.2,3754.7,1.71016746]
[1641058759624,0.00117937,3755.5,3754.8,1.64687295]
[1641058759625,0.00397897,3755.1,3754.8,1.64687295]
[1641058760128,0.00341054,3755.0,3754.8,1.94687295]
[1641058760323,0.00341054,3755.0,3754.9,5.99963458]
[1641058760626,0.00117937,3755.5,3754.9,1.69963458]
[1641058760830,1.04535038,3755.3,3754.8,1.69963458]
[1641058761426,1.04535038,3755.3,3754.7,0.01053288]
[1641058761825,1.71130558,3755.3,3754.7,0.01053288]
[1641058762225,1.04535038,3755.3,3754.7,0.01053288]
[1641058762451,1.04535038,3755.3,3754.7,0.00797188]
[1641058762856,0.66599,3755.0,3754.7,0.00797188]
[1641058763260,0.00284212,3754.9,3754.7,0.00797188]
[1641058763656,0.0022737,3754.8,3754.7,0.00797188]
[1641058764256,0.0022737,3754.8,3754.7,0.01053386]
[1641058766599,0.0022737,3754.8,3754.7,1.42718917]
[1641058767002,0.0022737,3754.8,3754.7,6.27718917]
[1641058767201,0.0022737,3754.8,3754.7,8.89718917]
[1641058767604,0.0022737,3754.8,3754.7,7.89718917]
[1641058767805,0.0022737,3754.8,3754.7,5.89718917]
[1641058768004,0.0022737,3754.8,3754.7,8.44718917]
[1641058768611,0.00341184,3754.8,3754.7,8.44718917]
[1641058768806,0.05596792,3756.5,3754.8,0.00089166]
[1641058769006,0.05596792,3756.5,3754.9,0.62]
[1641058769209,0.00909477,3756.4,3756.0,1.23143782]
[1641058769415,0.00909477,3756.4,3756.0,1.53143782]
[1641058769609,0.00852635,3756.3,3756.1,2.62]
[1641058769809,0.00852635,3756.3,3756.2,8.1]
[1641058770053,0.86812273,3758.2,3756.2,8.72]
[1641058770459,0.01875797,3758.1,3757.7,1.27177185]
[1641058770659,0.01875797,3758.1,3757.5,0.32]
[1641058770859,0.86812273,3758.2,3757.5,0.62]
[1641058770860,0.01818955,3758.0,3757.5,0.62]
[1641058771265,0.01762112,3757.9,3757.5,0.62]
[1641058771663,1.53350283,3758.2,3757.5,0.62]
[1641058771664,0.0170527,3757.8,3757.6,1.69266055]
[1641058771863,0.83517543,3758.2,3757.7,0.32]
[1641058772063,0.83517543,3758.2,3757.8,1.69106865]
[1641058772263,0.00170527,3758.1,3757.9,0.32]
[1641058772465,0.00170527,3758.1,3758.0,7.47491675]
[1641058772665,0.93112883,3758.3,3758.2,0.00170527]
[1641058772866,0.928457,3758.4,3758.3,7.02942356]
[1641058773062,0.928457,3758.4,3758.3,9.61434719]
[1641058773462,0.928457,3758.4,3758.3,9.91434719]
[1641058773902,1.0040916,3758.5,3758.4,5.25]
[1641058774097,1.0040916,3758.5,3758.4,7.39726377]
[1641058774297,1.00807056,3758.5,3758.4,7.39726377]
[1641058775098,1.00807056,3758.5,3758.4,9.0739889]
[1641058775499,1.00807056,3758.5,3758.4,9.24672513]
[1641058775701,0.11992,3760.0,3758.5,1.14619997]
[1641058775902,0.11992,3760.0,3758.6,7.38489]
[1641058776104,0.11992,3760.0,3758.6,9.38489]
[1641058776302,1.06641545,3758.7,3758.6,7.38489]
[1641058776703,1.06641545,3758.7,3758.6,2.64135058]
[1641058776905,1.06641545,3758.7,3758.6,0.32]
[1641058778169,0.32,3758.6,3758.3,2.60670651]
[1641058778566,0.32,3758.6,3758.2,0.05649252]
[1641058778567,5.48192941,3758.3,3758.2,0.05649252]
[1641058778769,3.05697558,3758.3,3758.2,0.05649252]
[1641058778967,3.05697558,3758.3,3758.2,0.05819779]
[1641058779170,3.05697558,3758.3,3758.0,3.3629901]
[1641058779171,9.15697558,3758.3,3758.0,3.3629901]
[1641058779372,6.1,3758.2,3757.0,3.3629901]
[1641058779569,0.01230376,3757.9,3757.0,3.3629901]
[1641058779773,0.01230376,3757.9,3757.1,0.00625265]
[1641058779971,0.01230376,3757.9,3756.6,3.3629901]
[1641058779972,6.1,3757.8,3756.6,3.3629901]
[1641058780170,6.10397896,3757.8,3756.6,3.3629901]
[1641058780368,0.41301054,3757.7,3756.7,0.0022737]
[1641058780575,1.33145,3757.4,3756.7,0.0022737]
[1641058780769,0.66571,3757.2,3756.7,0.01280054]
[1641058781225,0.66571,3757.2,3756.8,0.00170527]